[Event "Titled Tuesday Blitz January 10 Early 2023"]
[White "Halkias, Stelios"]
[Black "Kamsky, Gata"]
[WhiteFideId "4201809"]
[BlackFideId "2000024"]
[WhiteElo "2511"]
[BlackElo "2665"]
[Result "0-1"]
[Round "11"]
[TimeControl "180+2"]
[Date "2023.01.10"]
[WhiteClock "0:00:05"]
[BlackClock "0:00:43"]

1. Nf3 {[%clk 0:03:00]}  Nf6 {[%clk 0:02:58]} 2. c4 {[%clk 0:02:59]}  g6 {[%clk 0:02:48]} 3. Nc3 {[%clk 0:02:59]}  Bg7 {[%clk 0:02:47]} 4. e4 {[%clk 0:02:59]}  d6 {[%clk 0:02:48]} 5. d4 {[%clk 0:02:59]}  O-O {[%clk 0:02:48]} 6. Be2 {[%clk 0:02:59]}  c6 {[%clk 0:02:47]} 7. O-O {[%clk 0:02:58]}  a6 {[%clk 0:02:48]} 8. Be3 {[%clk 0:02:54]}  b5 {[%clk 0:02:48]} 9. a3 {[%clk 0:02:54]}  Nbd7 {[%clk 0:02:41]} 10. Rc1 {[%clk 0:02:46]}  e5 {[%clk 0:02:35]} 11. h3 {[%clk 0:02:38]}  Bb7 {[%clk 0:02:32]} 12. dxe5 {[%clk 0:02:29]}  dxe5 {[%clk 0:02:31]} 13. c5 {[%clk 0:02:29]}  Qe7 {[%clk 0:02:25]} 14. b4 {[%clk 0:02:22]}  a5 {[%clk 0:02:25]} 15. Qc2 {[%clk 0:02:19]}  Nh5 {[%clk 0:02:22]} 16. Rfd1 {[%clk 0:02:16]}  Nf4 {[%clk 0:02:21]} 17. Bf1 {[%clk 0:02:16]}  axb4 {[%clk 0:02:19]} 18. axb4 {[%clk 0:02:15]}  Rfd8 {[%clk 0:02:19]} 19. Rd6 {[%clk 0:01:48]}  Nf6 {[%clk 0:02:12]} 20. Rcd1 {[%clk 0:01:48]}  Ne8 {[%clk 0:02:09]} 21. Bxf4 {[%clk 0:01:42]}  exf4 {[%clk 0:02:07]} 22. e5 {[%clk 0:01:42]}  Nxd6 {[%clk 0:01:59]} 23. cxd6 {[%clk 0:01:41]}  Qe6 {[%clk 0:01:57]} 24. Ne4 {[%clk 0:01:41]}  Qa2 {[%clk 0:01:38]} 25. Qc1 {[%clk 0:01:36]}  c5 {[%clk 0:01:36]} 26. Nc3 {[%clk 0:00:47]}  Qb3 {[%clk 0:01:23]} 27. bxc5 {[%clk 0:00:44]}  Bxf3 {[%clk 0:01:22]} 28. gxf3 {[%clk 0:00:44]}  Bxe5 {[%clk 0:01:22]} 29. Nd5 {[%clk 0:00:36]}  Kg7 {[%clk 0:01:08]} 30. Rd3 {[%clk 0:00:26]}  Qc4 {[%clk 0:01:03]} 31. Qe1 {[%clk 0:00:26]}  f6 {[%clk 0:00:56]} 32. Nb6 {[%clk 0:00:21]}  Qxc5 {[%clk 0:00:55]} 33. Nxa8 {[%clk 0:00:21]}  Rxa8 {[%clk 0:00:55]} 34. d7 {[%clk 0:00:21]}  Rd8 {[%clk 0:00:55]} 35. Qe4 {[%clk 0:00:21]}  b4 {[%clk 0:00:53]} 36. Qb7 {[%clk 0:00:20]}  Bd4 {[%clk 0:00:50]} 37. Kg2 {[%clk 0:00:18]}  Bxf2 {[%clk 0:00:46]} 38. Rd5 {[%clk 0:00:15]}  Qc2 {[%clk 0:00:44]} 39. Bd3 {[%clk 0:00:05]}  Qb2 {[%clk 0:00:43]} 0-1


[Site "https://www.chess.com"]

[Event "Titled Tuesday Blitz January 10 Early 2023"]
[White "Zahid, Sanatan"]
[Black "Bacrot, Etienne"]
[WhiteFideId "10201963"]
[BlackFideId "605506"]
[WhiteElo "1930"]
[BlackElo "2667"]
[Result "1-0"]
[Round "11"]
[TimeControl "180+2"]
[Date "2023.01.10"]
[WhiteClock "0:01:46"]
[BlackClock "0:02:09"]

1. d4 {[%clk 0:03:00]}  Nf6 {[%clk 0:02:59]} 2. Nc3 {[%clk 0:03:00]}  d5 {[%clk 0:02:59]} 3. Bf4 {[%clk 0:03:00]}  a6 {[%clk 0:02:56]} 4. e3 {[%clk 0:03:00]}  b5 {[%clk 0:02:57]} 5. Bd3 {[%clk 0:03:00]}  Bb7 {[%clk 0:02:56]} 6. Nf3 {[%clk 0:03:00]}  e6 {[%clk 0:02:56]} 7. Ne2 {[%clk 0:03:00]}  c5 {[%clk 0:02:56]} 8. c3 {[%clk 0:03:01]}  Nc6 {[%clk 0:02:55]} 9. a4 {[%clk 0:02:58]}  c4 {[%clk 0:02:55]} 10. Bb1 {[%clk 0:02:56]}  b4 {[%clk 0:02:56]} 11. Ng3 {[%clk 0:02:56]}  Bd6 {[%clk 0:02:50]} 12. O-O {[%clk 0:02:53]}  O-O {[%clk 0:02:49]} 13. Ne5 {[%clk 0:02:51]}  Bxe5 {[%clk 0:02:43]} 14. dxe5 {[%clk 0:02:51]}  Nd7 {[%clk 0:02:42]} 15. Qh5 {[%clk 0:02:51]}  g6 {[%clk 0:02:42]} 16. Qh6 {[%clk 0:02:51]}  Ncxe5 {[%clk 0:02:25]} 17. Nh5 {[%clk 0:02:49]}  gxh5 {[%clk 0:02:09]} 18. Qxh7# {[%clk 0:01:46]} 1-0


[Site "https://www.chess.com"]

[Event "Titled Tuesday Blitz January 10 Early 2023"]
[White "Arabidze, Meri"]
[Black "Molina, Roberto Junio Brito"]
[WhiteFideId "13604040"]
[BlackFideId "2109450"]
[WhiteElo "2441"]
[BlackElo "2403"]
[Result "0-1"]
[Round "11"]
[TimeControl "180+2"]
[Date "2023.01.10"]
[WhiteClock "0:00:01"]
[BlackClock "0:00:05"]

1. d4 {[%clk 0:03:00]}  d5 {[%clk 0:02:59]} 2. c4 {[%clk 0:02:59]}  c6 {[%clk 0:02:59]} 3. Nf3 {[%clk 0:02:59]}  Nf6 {[%clk 0:02:58]} 4. g3 {[%clk 0:02:58]}  dxc4 {[%clk 0:02:58]} 5. Bg2 {[%clk 0:02:58]}  b5 {[%clk 0:02:58]} 6. O-O {[%clk 0:02:58]}  Bb7 {[%clk 0:02:57]} 7. b3 {[%clk 0:02:59]}  cxb3 {[%clk 0:02:57]} 8. Qxb3 {[%clk 0:02:59]}  a6 {[%clk 0:02:57]} 9. Rd1 {[%clk 0:02:59]}  e6 {[%clk 0:02:56]} 10. Nc3 {[%clk 0:02:59]}  Be7 {[%clk 0:02:55]} 11. e4 {[%clk 0:02:59]}  O-O {[%clk 0:02:54]} 12. e5 {[%clk 0:02:55]}  Nd5 {[%clk 0:02:54]} 13. Ne4 {[%clk 0:02:56]}  Nd7 {[%clk 0:02:54]} 14. Bg5 {[%clk 0:02:53]}  c5 {[%clk 0:02:48]} 15. dxc5 {[%clk 0:02:32]}  Bxg5 {[%clk 0:02:46]} 16. Nexg5 {[%clk 0:02:21]}  Rc8 {[%clk 0:02:36]} 17. Qd3 {[%clk 0:01:58]}  g6 {[%clk 0:02:34]} 18. Qe4 {[%clk 0:01:58]}  Kg7 {[%clk 0:02:23]} 19. h4 {[%clk 0:01:00]}  Nxc5 {[%clk 0:02:07]} 20. Qe1 {[%clk 0:00:53]}  Qe7 {[%clk 0:02:01]} 21. Nh2 {[%clk 0:00:42]}  h6 {[%clk 0:01:53]} 22. Ne4 {[%clk 0:00:39]}  Nxe4 {[%clk 0:01:51]} 23. Bxe4 {[%clk 0:00:40]}  Rc4 {[%clk 0:01:39]} 24. Bg2 {[%clk 0:00:29]}  Rfc8 {[%clk 0:01:33]} 25. h5 {[%clk 0:00:29]}  gxh5 {[%clk 0:01:24]} 26. Nf3 {[%clk 0:00:22]}  Nb4 {[%clk 0:01:18]} 27. Qe2 {[%clk 0:00:18]}  Re4 {[%clk 0:01:11]} 28. Qd2 {[%clk 0:00:14]}  Rc2 {[%clk 0:01:08]} 29. Qd6 {[%clk 0:00:14]}  Qc7 {[%clk 0:00:59]} 30. Nd2 {[%clk 0:00:12]}  Rg4 {[%clk 0:00:37]} 31. Bxb7 {[%clk 0:00:06]}  Qxb7 {[%clk 0:00:34]} 32. a3 {[%clk 0:00:06]}  Nd5 {[%clk 0:00:28]} 33. Nf3 {[%clk 0:00:05]}  Rc6 {[%clk 0:00:24]} 34. Qd8 {[%clk 0:00:05]}  Rc8 {[%clk 0:00:19]} 35. Qd6 {[%clk 0:00:05]}  Ne7 {[%clk 0:00:12]} 36. Qd3 {[%clk 0:00:04]}  Nf5 {[%clk 0:00:12]} 37. Rac1 {[%clk 0:00:04]}  Rxc1 {[%clk 0:00:10]} 38. Rxc1 {[%clk 0:00:05]}  Rc4 {[%clk 0:00:11]} 39. Re1 {[%clk 0:00:04]}  Qc6 {[%clk 0:00:09]} 40. Kg2 {[%clk 0:00:03]}  Rc3 {[%clk 0:00:10]} 41. Qe2 {[%clk 0:00:02]}  Rxa3 {[%clk 0:00:09]} 42. Rd1 {[%clk 0:00:01]}  h4 {[%clk 0:00:07]} 43. Rd8 {[%clk 0:00:01]}  h3+ {[%clk 0:00:06]} 44. Kxh3 {[%clk 0:00:01]}  Qxf3 {[%clk 0:00:07]} 45. Qd2 {[%clk 0:00:01]}  Qh5+ {[%clk 0:00:06]} 46. Kg2 {[%clk 0:00:01]}  Qg5 {[%clk 0:00:05]} 0-1


[Site "https://www.chess.com"]

[Event "Titled Tuesday Blitz January 10 Early 2023"]
[White "Krysa, Leandro"]
[Black "Sanal, Vahap"]
[WhiteFideId "116807"]
[BlackFideId "6300545"]
[WhiteElo "2541"]
[BlackElo "2600"]
[Result "1-0"]
[Round "11"]
[TimeControl "180+2"]
[Date "2023.01.10"]
[WhiteClock "0:00:09"]
[BlackClock "0:00:28"]

1. e4 {[%clk 0:03:00]}  g6 {[%clk 0:02:57]} 2. d4 {[%clk 0:03:00]}  Bg7 {[%clk 0:02:57]} 3. Nf3 {[%clk 0:03:00]}  d6 {[%clk 0:02:57]} 4. Bc4 {[%clk 0:03:00]}  Nf6 {[%clk 0:02:56]} 5. Qe2 {[%clk 0:03:00]}  O-O {[%clk 0:02:56]} 6. O-O {[%clk 0:02:59]}  c6 {[%clk 0:02:57]} 7. e5 {[%clk 0:02:58]}  dxe5 {[%clk 0:02:58]} 8. dxe5 {[%clk 0:02:59]}  Nd5 {[%clk 0:02:58]} 9. Rd1 {[%clk 0:02:59]}  Bg4 {[%clk 0:02:50]} 10. Nbd2 {[%clk 0:02:57]}  Nd7 {[%clk 0:02:46]} 11. h3 {[%clk 0:02:57]}  Be6 {[%clk 0:02:47]} 12. a4 {[%clk 0:02:51]}  Qc7 {[%clk 0:02:46]} 13. Re1 {[%clk 0:02:47]}  Nf4 {[%clk 0:02:40]} 14. Qe4 {[%clk 0:02:43]}  Bxc4 {[%clk 0:02:40]} 15. Nxc4 {[%clk 0:02:39]}  Ne6 {[%clk 0:02:40]} 16. Qh4 {[%clk 0:02:35]}  b5 {[%clk 0:02:37]} 17. Na3 {[%clk 0:02:24]}  Nxe5 {[%clk 0:02:23]} 18. Nxe5 {[%clk 0:02:23]}  Bxe5 {[%clk 0:02:23]} 19. axb5 {[%clk 0:02:13]}  cxb5 {[%clk 0:02:16]} 20. Nxb5 {[%clk 0:02:11]}  Qc5 {[%clk 0:02:16]} 21. Nxa7 {[%clk 0:01:50]}  Bf6 {[%clk 0:02:08]} 22. Qa4 {[%clk 0:01:38]}  Bd4 {[%clk 0:02:05]} 23. Be3 {[%clk 0:01:33]}  Bxe3 {[%clk 0:01:50]} 24. Rxe3 {[%clk 0:01:33]}  Rfb8 {[%clk 0:01:50]} 25. Rc3 {[%clk 0:01:21]}  Qd4 {[%clk 0:01:42]} 26. Rb3 {[%clk 0:00:59]}  Rxb3 {[%clk 0:01:33]} 27. Qxb3 {[%clk 0:01:00]}  Nf4 {[%clk 0:01:10]} 28. Qb7 {[%clk 0:00:55]}  Rd8 {[%clk 0:01:00]} 29. Nc6 {[%clk 0:00:51]}  Ne2+ {[%clk 0:01:00]} 30. Kf1 {[%clk 0:00:31]}  Ng3+ {[%clk 0:00:47]} 31. fxg3 {[%clk 0:00:27]}  Qc4+ {[%clk 0:00:48]} 32. Kg1 {[%clk 0:00:27]}  Rd2 {[%clk 0:00:48]} 33. Nxe7+ {[%clk 0:00:24]}  Kg7 {[%clk 0:00:48]} 34. Rf1 {[%clk 0:00:22]}  Rxc2 {[%clk 0:00:38]} 35. Nd5 {[%clk 0:00:16]}  Qc5+ {[%clk 0:00:37]} 36. Kh2 {[%clk 0:00:14]}  Qf8 {[%clk 0:00:38]} 37. Qb3 {[%clk 0:00:11]}  Rc8 {[%clk 0:00:36]} 38. Qf3 {[%clk 0:00:11]}  Rc6 {[%clk 0:00:33]} 39. Qf4 {[%clk 0:00:10]}  Rd6 {[%clk 0:00:22]} 40. Qe5+ {[%clk 0:00:08]}  Kh6 {[%clk 0:00:18]} 41. Nf6 {[%clk 0:00:07]}  g5 {[%clk 0:00:15]} 42. Ng4+ {[%clk 0:00:05]}  Kg6 {[%clk 0:00:15]} 43. Qf5+ {[%clk 0:00:05]}  Kg7 {[%clk 0:00:16]} 44. Qxg5+ {[%clk 0:00:06]}  Rg6 {[%clk 0:00:17]} 45. Qe5+ {[%clk 0:00:06]}  f6 {[%clk 0:00:15]} 46. Rxf6 {[%clk 0:00:05]}  Rxf6 {[%clk 0:00:15]} 47. Qxf6+ {[%clk 0:00:05]}  Qxf6 {[%clk 0:00:15]} 48. Nxf6 {[%clk 0:00:06]}  Kxf6 {[%clk 0:00:16]} 49. g4 {[%clk 0:00:06]}  Ke5 {[%clk 0:00:17]} 50. Kg3 {[%clk 0:00:07]}  Kd4 {[%clk 0:00:18]} 51. Kh4 {[%clk 0:00:07]}  Ke5 {[%clk 0:00:18]} 52. Kh5 {[%clk 0:00:08]}  Kf6 {[%clk 0:00:19]} 53. Kh6 {[%clk 0:00:08]}  Ke5 {[%clk 0:00:19]} 54. Kxh7 {[%clk 0:00:09]}  Kf4 {[%clk 0:00:20]} 55. b4 {[%clk 0:00:08]}  Kg5 {[%clk 0:00:21]} 56. b5 {[%clk 0:00:08]}  Kh4 {[%clk 0:00:22]} 57. b6 {[%clk 0:00:09]}  Kg5 {[%clk 0:00:23]} 58. b7 {[%clk 0:00:09]}  Kh4 {[%clk 0:00:24]} 59. b8=Q {[%clk 0:00:09]}  Kg5 {[%clk 0:00:25]} 60. Qg3 {[%clk 0:00:09]}  Kf6 {[%clk 0:00:25]} 61. g5+ {[%clk 0:00:10]}  Kf5 {[%clk 0:00:25]} 62. g6 {[%clk 0:00:09]}  Kf6 {[%clk 0:00:26]} 63. g7 {[%clk 0:00:09]}  Kf5 {[%clk 0:00:27]} 64. g8=Q {[%clk 0:00:08]}  Ke4 {[%clk 0:00:28]} 65. Qe6+ {[%clk 0:00:08]}  Kd4 {[%clk 0:00:28]} 66. Qge3# {[%clk 0:00:09]} 1-0


[Site "https://www.chess.com"]

[Event "Titled Tuesday Blitz January 10 Early 2023"]
[White "Ter-Sahakyan, Samvel"]
[Black "Koellner, Ruben Gideon"]
[WhiteFideId "13302531"]
[BlackFideId "12993093"]
[WhiteElo "2617"]
[BlackElo "2426"]
[Result "1-0"]
[Round "11"]
[TimeControl "180+2"]
[Date "2023.01.10"]
[WhiteClock "0:01:54"]
[BlackClock "0:00:05"]

1. d4 {[%clk 0:02:59]}  d6 {[%clk 0:02:59]} 2. c4 {[%clk 0:02:58]}  e5 {[%clk 0:02:59]} 3. Nf3 {[%clk 0:02:57]}  e4 {[%clk 0:02:59]} 4. Ng5 {[%clk 0:02:57]}  f5 {[%clk 0:02:59]} 5. h4 {[%clk 0:02:56]}  Be7 {[%clk 0:02:59]} 6. Nc3 {[%clk 0:02:56]}  Nf6 {[%clk 0:02:59]} 7. Bf4 {[%clk 0:02:51]}  O-O {[%clk 0:02:59]} 8. e3 {[%clk 0:02:51]}  h6 {[%clk 0:02:56]} 9. Be2 {[%clk 0:02:44]}  hxg5 {[%clk 0:02:36]} 10. hxg5 {[%clk 0:02:44]}  Ng4 {[%clk 0:02:36]} 11. f3 {[%clk 0:02:41]}  Nxe3 {[%clk 0:02:20]} 12. Bxe3 {[%clk 0:02:40]}  Bxg5 {[%clk 0:02:21]} 13. f4 {[%clk 0:02:30]}  Bf6 {[%clk 0:02:18]} 14. Bh5 {[%clk 0:02:15]}  Bh4+ {[%clk 0:01:10]} 15. g3 {[%clk 0:02:14]}  Bxg3+ {[%clk 0:00:46]} 16. Kd2 {[%clk 0:02:14]}  Qf6 {[%clk 0:00:16]} 17. Nd5 {[%clk 0:02:13]}  Qe6 {[%clk 0:00:13]} 18. Bg6 {[%clk 0:02:01]}  Rf6 {[%clk 0:00:05]} 19. Nxf6+ {[%clk 0:01:54]}  Qxf6 {[%clk 0:00:03]} 20. Rh8+ {[%clk 0:01:52]}  Kxh8 {[%clk 0:00:03]} 21. Qh5+ {[%clk 0:01:53]}  Kg8 {[%clk 0:00:04]} 22. Qh7+ {[%clk 0:01:53]}  Kf8 {[%clk 0:00:04]} 23. Qh8+ {[%clk 0:01:54]}  Ke7 {[%clk 0:00:05]} 24. Qe8# {[%clk 0:01:54]} 1-0


[Site "https://www.chess.com"]

[Event "Titled Tuesday Blitz January 10 Early 2023"]
[White "Makarian, Rudik"]
[Black "Volkov, Maksim"]
[WhiteFideId "44105681"]
[BlackFideId "54123070"]
[WhiteElo "2545"]
[BlackElo "2258"]
[Result "1-0"]
[Round "11"]
[TimeControl "180+2"]
[Date "2023.01.10"]
[WhiteClock "0:01:12"]
[BlackClock "0:00:25"]

1. d4 {[%clk 0:02:55]}  d5 {[%clk 0:02:59]} 2. c4 {[%clk 0:02:55]}  e6 {[%clk 0:02:59]} 3. Nf3 {[%clk 0:02:56]}  Nf6 {[%clk 0:02:59]} 4. Bg5 {[%clk 0:02:55]}  dxc4 {[%clk 0:02:58]} 5. e3 {[%clk 0:02:51]}  b5 {[%clk 0:02:51]} 6. a4 {[%clk 0:02:49]}  c6 {[%clk 0:02:49]} 7. Nc3 {[%clk 0:02:49]}  Bb4 {[%clk 0:02:45]} 8. g3 {[%clk 0:02:44]}  Bb7 {[%clk 0:02:37]} 9. Bg2 {[%clk 0:02:42]}  Nbd7 {[%clk 0:02:33]} 10. O-O {[%clk 0:02:42]}  a6 {[%clk 0:02:21]} 11. Rc1 {[%clk 0:02:33]}  h6 {[%clk 0:02:14]} 12. Bxf6 {[%clk 0:02:33]}  Nxf6 {[%clk 0:02:15]} 13. b3 {[%clk 0:02:32]}  Nd5 {[%clk 0:02:10]} 14. Na2 {[%clk 0:02:26]}  cxb3 {[%clk 0:01:38]} 15. Nxb4 {[%clk 0:02:25]}  b2 {[%clk 0:01:38]} 16. Rb1 {[%clk 0:02:17]}  Nxb4 {[%clk 0:01:37]} 17. Rxb2 {[%clk 0:02:18]}  Nd5 {[%clk 0:01:37]} 18. Qb3 {[%clk 0:02:09]}  O-O {[%clk 0:01:36]} 19. Ne5 {[%clk 0:02:09]}  Qe7 {[%clk 0:01:27]} 20. Rc1 {[%clk 0:02:06]}  Rac8 {[%clk 0:01:24]} 21. Nd3 {[%clk 0:02:04]}  Ba8 {[%clk 0:01:24]} 22. h4 {[%clk 0:02:04]}  Rfe8 {[%clk 0:01:24]} 23. Rbc2 {[%clk 0:02:04]}  Rb8 {[%clk 0:01:22]} 24. Ne5 {[%clk 0:02:00]}  a5 {[%clk 0:01:13]} 25. Nxc6 {[%clk 0:01:52]}  Bxc6 {[%clk 0:01:13]} 26. Rxc6 {[%clk 0:01:53]}  Nb4 {[%clk 0:01:08]} 27. Rc7 {[%clk 0:01:50]}  Qf6 {[%clk 0:01:06]} 28. axb5 {[%clk 0:01:44]}  Rxb5 {[%clk 0:01:07]} 29. Rd7 {[%clk 0:01:39]}  Rd8 {[%clk 0:00:59]} 30. Rcc7 {[%clk 0:01:27]}  Rxd7 {[%clk 0:00:58]} 31. Rxd7 {[%clk 0:01:28]}  g6 {[%clk 0:00:58]} 32. Qc4 {[%clk 0:01:24]}  Rf5 {[%clk 0:00:40]} 33. f4 {[%clk 0:01:20]}  e5 {[%clk 0:00:28]} 34. dxe5 {[%clk 0:01:16]}  Qb6 {[%clk 0:00:28]} 35. Qd4 {[%clk 0:01:16]}  Qxd4 {[%clk 0:00:25]} 36. exd4 {[%clk 0:01:12]} 1-0


[Site "https://www.chess.com"]

[Event "Titled Tuesday Blitz January 10 Early 2023"]
[White "Seemann, Jakub"]
[Black "Pakleza, Zbigniew"]
[WhiteFideId "21874697"]
[BlackFideId "1119290"]
[WhiteElo "2446"]
[BlackElo "2494"]
[Result "1/2-1/2"]
[Round "11"]
[TimeControl "180+2"]
[Date "2023.01.10"]
[WhiteClock "0:00:03"]
[BlackClock "0:00:04"]

1. d4 {[%clk 0:03:00]}  d6 {[%clk 0:02:59]} 2. Nf3 {[%clk 0:02:57]}  Bg4 {[%clk 0:02:59]} 3. e4 {[%clk 0:02:53]}  Nf6 {[%clk 0:02:58]} 4. Nc3 {[%clk 0:02:50]}  e6 {[%clk 0:02:58]} 5. h3 {[%clk 0:02:49]}  Bh5 {[%clk 0:02:58]} 6. Be3 {[%clk 0:02:42]}  d5 {[%clk 0:02:57]} 7. e5 {[%clk 0:02:37]}  Nfd7 {[%clk 0:02:57]} 8. g4 {[%clk 0:02:33]}  Bg6 {[%clk 0:02:57]} 9. Ne2 {[%clk 0:02:18]}  c5 {[%clk 0:02:55]} 10. dxc5 {[%clk 0:02:13]}  Nc6 {[%clk 0:02:53]} 11. Ned4 {[%clk 0:01:56]}  Bxc5 {[%clk 0:02:47]} 12. Nxc6 {[%clk 0:01:37]}  bxc6 {[%clk 0:02:48]} 13. Bxc5 {[%clk 0:01:35]}  Nxc5 {[%clk 0:02:49]} 14. Qd4 {[%clk 0:01:35]}  Qb6 {[%clk 0:02:46]} 15. O-O-O {[%clk 0:01:27]}  Be4 {[%clk 0:02:23]} 16. Be2 {[%clk 0:01:26]}  Rb8 {[%clk 0:02:23]} 17. Rhe1 {[%clk 0:01:25]}  Na4 {[%clk 0:02:09]} 18. Qxa4 {[%clk 0:00:54]}  Qxb2+ {[%clk 0:01:56]} 19. Kd2 {[%clk 0:00:53]}  O-O {[%clk 0:01:56]} 20. Rb1 {[%clk 0:00:49]}  Qxb1 {[%clk 0:01:56]} 21. Rxb1 {[%clk 0:00:49]}  Rxb1 {[%clk 0:01:57]} 22. Nd4 {[%clk 0:00:41]}  c5 {[%clk 0:01:53]} 23. Nc6 {[%clk 0:00:40]}  h6 {[%clk 0:01:23]} 24. Ne7+ {[%clk 0:00:39]}  Kh8 {[%clk 0:01:22]} 25. Bd3 {[%clk 0:00:38]}  Bxd3 {[%clk 0:01:14]} 26. Kxd3 {[%clk 0:00:38]}  Rb7 {[%clk 0:01:06]} 27. Nc6 {[%clk 0:00:37]}  Rc8 {[%clk 0:01:01]} 28. Qa6 {[%clk 0:00:34]}  Rcc7 {[%clk 0:01:02]} 29. Nd8 {[%clk 0:00:24]}  Rb6 {[%clk 0:00:59]} 30. Qa4 {[%clk 0:00:23]}  Kh7 {[%clk 0:00:56]} 31. h4 {[%clk 0:00:16]}  Rb8 {[%clk 0:00:51]} 32. Nc6 {[%clk 0:00:15]}  Rb6 {[%clk 0:00:44]} 33. Nxa7 {[%clk 0:00:14]}  Rb4 {[%clk 0:00:43]} 34. Qa6 {[%clk 0:00:14]}  Rxg4 {[%clk 0:00:39]} 35. Nc8 {[%clk 0:00:13]}  c4+ {[%clk 0:00:34]} 36. Kd2 {[%clk 0:00:09]}  Rxh4 {[%clk 0:00:24]} 37. Nd6 {[%clk 0:00:10]}  Rh2 {[%clk 0:00:16]} 38. Qb6 {[%clk 0:00:09]}  Rd7 {[%clk 0:00:14]} 39. Ke3 {[%clk 0:00:09]}  Rh3+ {[%clk 0:00:12]} 40. f3 {[%clk 0:00:09]}  g5 {[%clk 0:00:10]} 41. Ne8 {[%clk 0:00:09]}  Kg6 {[%clk 0:00:10]} 42. Nf6 {[%clk 0:00:09]}  Re7 {[%clk 0:00:09]} 43. Qd8 {[%clk 0:00:08]}  Ra7 {[%clk 0:00:09]} 44. Qg8+ {[%clk 0:00:08]}  Kf5 {[%clk 0:00:10]} 45. Qh7+ {[%clk 0:00:08]}  Kxe5 {[%clk 0:00:10]} 46. Ng4+ {[%clk 0:00:05]}  Kd6 {[%clk 0:00:11]} 47. Qg8 {[%clk 0:00:06]}  Ra3+ {[%clk 0:00:10]} 48. Kd2 {[%clk 0:00:04]}  Rhxf3 {[%clk 0:00:07]} 49. Qd8+ {[%clk 0:00:04]}  Kc6 {[%clk 0:00:06]} 50. Ne5+ {[%clk 0:00:04]}  Kc5 {[%clk 0:00:06]} 51. Qe7+ {[%clk 0:00:03]}  Kd4 {[%clk 0:00:05]} 52. Nxf3+ {[%clk 0:00:04]}  Rxf3 {[%clk 0:00:06]} 53. Qa7+ {[%clk 0:00:04]}  Ke4 {[%clk 0:00:06]} 54. Qg1 {[%clk 0:00:04]}  c3+ {[%clk 0:00:04]} 55. Ke2 {[%clk 0:00:04]}  f5 {[%clk 0:00:01]} 56. Qg2 {[%clk 0:00:03]}  g4 {[%clk 0:00:02]} 57. Qh1 {[%clk 0:00:04]}  h5 {[%clk 0:00:01]} 58. Qxh5 {[%clk 0:00:04]}  d4 {[%clk 0:00:01]} 59. Qh1 {[%clk 0:00:04]}  e5 {[%clk 0:00:01]} 60. Qg2 {[%clk 0:00:04]}  f4 {[%clk 0:00:02]} 61. Qxg4 {[%clk 0:00:04]}  Re3+ {[%clk 0:00:03]} 62. Kd1 {[%clk 0:00:05]}  Rg3 {[%clk 0:00:04]} 63. Qe6 {[%clk 0:00:04]}  Rg1+ {[%clk 0:00:03]} 64. Ke2 {[%clk 0:00:04]}  Rg2+ {[%clk 0:00:04]} 65. Kf1 {[%clk 0:00:04]}  Rd2 {[%clk 0:00:03]} 66. Qg6+ {[%clk 0:00:04]}  Ke3 {[%clk 0:00:04]} 67. Qg1+ {[%clk 0:00:05]}  Ke4 {[%clk 0:00:04]} 68. Qg6+ {[%clk 0:00:05]}  Ke3 {[%clk 0:00:04]} 69. Qg1+ {[%clk 0:00:04]}  Ke4 {[%clk 0:00:04]} 70. Qg6+ {[%clk 0:00:03]} 1/2-1/2


[Site "https://www.chess.com"]

[Event "Titled Tuesday Blitz January 10 Early 2023"]
[White "Perez Rodriguez, Luis Manuel"]
[Black "Harsha Bharathakoti"]
[WhiteFideId "3503364"]
[BlackFideId "5078776"]
[WhiteElo "2329"]
[BlackElo "2602"]
[Result "0-1"]
[Round "11"]
[TimeControl "180+2"]
[Date "2023.01.10"]
[WhiteClock "0:00:39"]
[BlackClock "0:00:48"]

1. e4 {[%clk 0:03:00]}  c5 {[%clk 0:02:47]} 2. Nf3 {[%clk 0:03:00]}  d6 {[%clk 0:02:48]} 3. d4 {[%clk 0:03:00]}  cxd4 {[%clk 0:02:49]} 4. Nxd4 {[%clk 0:03:00]}  Nf6 {[%clk 0:02:49]} 5. Nc3 {[%clk 0:03:01]}  Nc6 {[%clk 0:02:50]} 6. Bc4 {[%clk 0:03:00]}  e6 {[%clk 0:02:51]} 7. Be3 {[%clk 0:03:00]}  a6 {[%clk 0:02:51]} 8. Qe2 {[%clk 0:02:58]}  Qc7 {[%clk 0:02:52]} 9. Bb3 {[%clk 0:02:57]}  Na5 {[%clk 0:02:52]} 10. g4 {[%clk 0:02:58]}  b5 {[%clk 0:02:53]} 11. g5 {[%clk 0:02:57]}  Nd7 {[%clk 0:02:53]} 12. h4 {[%clk 0:02:41]}  Nxb3 {[%clk 0:02:50]} 13. axb3 {[%clk 0:02:40]}  Bb7 {[%clk 0:02:50]} 14. f3 {[%clk 0:02:40]}  b4 {[%clk 0:02:44]} 15. Na4 {[%clk 0:02:36]}  d5 {[%clk 0:02:44]} 16. exd5 {[%clk 0:02:28]}  Bxd5 {[%clk 0:02:45]} 17. O-O-O {[%clk 0:02:27]}  g6 {[%clk 0:02:15]} 18. h5 {[%clk 0:02:24]}  Bg7 {[%clk 0:02:16]} 19. Kb1 {[%clk 0:02:22]}  Rc8 {[%clk 0:02:07]} 20. hxg6 {[%clk 0:02:12]}  hxg6 {[%clk 0:02:06]} 21. Rxh8+ {[%clk 0:02:12]}  Bxh8 {[%clk 0:02:07]} 22. f4 {[%clk 0:02:12]}  Be4 {[%clk 0:01:53]} 23. Bc1 {[%clk 0:01:52]}  Qb7 {[%clk 0:01:47]} 24. f5 {[%clk 0:01:38]}  exf5 {[%clk 0:01:38]} 25. Ka2 {[%clk 0:01:15]}  Kf8 {[%clk 0:01:23]} 26. c4 {[%clk 0:01:04]}  bxc3 {[%clk 0:01:22]} 27. Nxc3 {[%clk 0:01:05]}  Nc5 {[%clk 0:01:15]} 28. Nxe4 {[%clk 0:01:01]}  Qxe4 {[%clk 0:01:15]} 29. Qc4 {[%clk 0:00:58]}  Qb7 {[%clk 0:01:06]} 30. Bf4 {[%clk 0:00:53]}  Ne4 {[%clk 0:01:05]} 31. Qd3 {[%clk 0:00:49]}  Kg8 {[%clk 0:00:56]} 32. Rh1 {[%clk 0:00:45]}  Nc3+ {[%clk 0:00:48]} 33. bxc3 {[%clk 0:00:39]}  Qxh1 {[%clk 0:00:48]} 0-1


[Site "https://www.chess.com"]